Cogmind - Beta 10.2 @@@ ROGUE MODE // 2021.08.31 @ 21:11:15 Player: Bert Result: Destroyed by as-62965 with Assembled F-torch Performance ------------- Evolutions (0) 0 Regions Visited (2) 400 Robots Destroyed (3) 15 Value Destroyed (30) 30 Prototype IDs (0) 0 Alien Tech Used (0) 0 Bonus (0) 0 TOTAL SCORE: 445 Bonus ------- None Cogmind --------- Core Integrity 0/250 Matter 280/300 Energy 100/100 System Corruption 0% Temperature Cool (20) Movement Core (550) Ox10 Location -10/Mines Parts ------- > --- POWER (1) -------- (None) > --- PROPULSION (2) --- (None) > --- UTILITY (2) ------ High-capacity Storage Unit > --- WEAPON (2) ------- (None) > --- INVENTORY (12) --- Seismic Analyzer Light Assault Rifle Peak State ------------ > --- POWER ------------ Ion Engine > --- PROPULSION ------- Wheel Compact Wheel > --- UTILITY ---------- Heat Sink High-capacity Storage Unit > --- WEAPON ----------- Assault Rifle Ripper > --- INVENTORY -------- Light Ion Engine Light Assault Rifle [Rating: 10] Favorites ----------- Power Ion Engine Engine Ion Engine Propulsion Wheel Wheel Wheel Utility High-capacity Storage Unit Device Heat Sink Storage High-capacity Storage Unit Weapon Assault Rifle Energy Gun Medium Laser Ballistic Gun Assault Rifle Slashing Weapon Ripper Build | -11 -10 -10 ------- Run | Scr Mat Min Slots Evolved . | . . . Power . | . . . Propulsion . | . . . Utility . | . . . Weapon . | . . . Parts Attached 13 | 7 2 4 Power 2 | 1 . 1 Engine 2 | 1 . 1 Core . | . . . Reactor . | . . . Propulsion 3 | 2 . 1 Treads . | . . . Leg . | . . . Wheel 3 | 2 . 1 Hover . | . . . Flight . | . . . Utility 3 | 1 2 . Device 1 | . 1 . Storage 2 | 1 1 . Processor . | . . . Hackware . | . . . Protection . | . . . Artifact . | . . . Weapon 5 | 3 . 2 Energy Gun 1 | 1 . . Energy Cannon . | . . . Ballistic Gun 3 | 2 . 1 Ballistic Cannon . | . . . Launcher . | . . . Special Weapon . | . . . Impact Weapon . | . . . Slashing Weapon 1 | . . 1 Piercing Weapon . | . . . Special Melee Weapon . | . . . Unidentified Prototypes . | . . . Parts Lost 9 | . . 9 Power 2 | . . 2 Propulsion 3 | . . 3 Utility 1 | . . 1 Weapon 3 | . . 3 Highest Loss Streak 7 | . . 7 Average Slot Usage (%) 94 | . 97 93 Engine 12 | . 14 12 Wheel 26 | . 28 26 Device 12 | . 11 12 Storage 14 | . 14 14 Energy Gun 6 | . 14 4 Ballistic Gun 13 | . 14 13 Slashing Weapon 6 | . . 8 Naked Turns . | . . . Heaviest Build 43 | 13 42 43 Greatest Support 26 | 26 26 26 Greatest Overweight (x) 11 | . 1 11 Average Overweight (x) . | . . 1 Largest Inventory Capacity 12 | 6 12 12 Average Capacity 10 | 4 9 12 Most Carried 4 | 2 3 4 Average Carried 2 | . 2 2 Final Capacity 12 | 6 12 12 Final Carried 2 | 2 2 2 Class Distribution -------------------- 100% | Mutant Dominant Class ---------------- Mutant | -10/Materials Mutant | -10/Mines Resources | -11 -10 -10 ----------- Run | Scr Mat Min Matter Collected 297 | 207 . 90 Remotely . | . . . Salvage Created 43 | . . 43 Parts 2 | . . 2 Haulers Intercepted . | . . . Recyclers Shooed . | . . . Parts Field Recycled . | . . . Retrieved Matter . | . . . Parts Self-Destructed . | . . . Prevented . | . . . Kills | -11 -10 -10 ------- Run | Scr Mat Min Combat Hostiles Destroyed 3 | . . 3 Guns 3 | . . 3 Classes Destroyed 1 | . . 1 Swarmer 3 | . . 3 Best Kill Streak 3 | . . 3 Combat Bots Only 3 | . . 3 Max Kills in Single Turn 1 | . . 1 Gunslinging . | . . . Exploded . | . . . Melee . | . . . Uniques/NPCs Destroyed . | . . . Combat | -11 -10 -10 -------- Run | Scr Mat Min Damage Taken 789 | . 47 742 Core 261 | . 22 239 Absorbed by Shields . | . . . Core Remaining (%) 100 | 100 . . Volleys Fired 10 | . 5 5 Largest 2 | . 2 2 Hottest 70 | . 70 70 Shots Fired 20 | . 10 10 Gun 20 | . 10 10 Cannon . | . . . Launcher . | . . . Special . | . . . Kinetic 12 | . 5 7 Thermal 8 | . 5 3 Explosive . | . . . Electromagnetic . | . . . Robot Hit Streak 3 | . 3 2 Robot Miss Streak 2 | . 2 2 Penetration Max . | . . . Secondary Targets 1 | . . 1 Max Gunslinging Chain 1 | . . 1 Shots Hit Robots 12 | . 6 6 Core Hits 5 | . 1 4 Critical Hits . | . . . Critical Kills . | . . . Critical Parts Destroyed . | . . . Melee Attacks 4 | . . 4 Impact . | . . . Slashing 4 | . . 4 Piercing . | . . . Sneak Attacks . | . . . Combat Hostiles . | . . . Follow-up Attacks . | . . . Damage Inflicted 168 | . 77 91 Guns 125 | . 77 48 Cannons . | . . . Explosions . | . . . Melee 43 | . . 43 Ramming . | . . . Kinetic 63 | . 41 22 Thermal 62 | . 36 26 Explosive . | . . . Electromagnetic . | . . . Impact . | . . . Slashing 43 | . . 43 Piercing . | . . . Highest Corruption . | . . . Average Corruption . | . . . Corruption Purged . | . . . Overload Shots . | . . . Overflow Damage 13 | . . 13 Projectiles . | . . . Explosions . | . . . Melee 13 | . . 13 Knockbacks . | . . . Impact . | . . . Kinetic . | . . . Secondary . | . . . Self-Inflicted Damage . | . . . Shots . | . . . Rammed . | . . . Targets Rammed . | . . . Kicked . | . . . Crushed . | . . . Highest Temperature . | . . . Average Temperature . | . . . Received Heat Transfer 306 | . 6 300 Siege Activations . | . . . Robots Corrupted . | . . . Combat Hostiles . | . . . Parts Fried . | . . . Impact Corruptions . | . . . Robots Melted . | . . . Combat Hostiles . | . . . Parts Melted . | . . . Heat Transferred 185 | . 111 74 Parts Sabotaged . | . . . Parts Stolen . | . . . Parts Stripped . | . . . Power Chain Reactions . | . . . Missiles Intercepted . | . . . Alert | -11 -10 -10 ------- Run | Scr Mat Min Peak Influence 65 | . 15 65 Initial 5 | . . 5 Average 28 | . 2 40 Maximum Alert Level . | . . . Low Security (%) 100 | 100 100 100 Level 1 . | . . . Level 2 . | . . . Level 3 . | . . . Level 4 . | . . . Level 5 . | . . . High Security . | . . . Max Security . | . . . Squads Dispatched . | . . . Investigation . | . . . Extermination . | . . . Reinforcement . | . . . Assault . | . . . Garrison . | . . . Intercept . | . . . Construction Impeded . | . . . Haulers Reinforced . | . . . Stealth | -11 -10 -10 --------- Run | Scr Mat Min Distress Signals 1 | . 1 . Communications Jammed . | . . . Distress Signals . | . . . Times Spotted 15 | . 3 12 Peak Tracking Total 9 | . 4 9 Tactical Retreats 1 | . . 1 Traps | -11 -10 -10 ------- Run | Scr Mat Min Traps Triggered . | . . . Indirectly . | . . . Trap Hack Attempts . | . . . Triggered . | . . . Disarmed . | . . . Reprogrammed . | . . . Reused . | . . . Traps Extracted . | . . . Installed . | . . . Triggered . | . . . Machines | -11 -10 -10 ---------- Run | Scr Mat Min Machines Disabled . | . . . Max in Single Turn . | . . . Machines Sabotaged . | . . . Garrisons Compromised . | . . . Overloaded Fab Kills . | . . . Fab Network Shutdowns . | . . . Hacking | -11 -10 -10 --------- Run | Scr Mat Min Machines Accessed . | . . . Terminals . | . . . Fabricators . | . . . Repair Stations . | . . . Recycling Units . | . . . Scanalyzers . | . . . Garrison Access . | . . . Total Hacks . | . . . Successful . | . . . Failed . | . . . Catastrophic . | . . . Database Lockouts . | . . . Manual . | . . . Terminals . | . . . Fabricators . | . . . Repair Stations . | . . . Recycling Units . | . . . Scanalyzers . | . . . Garrison Access . | . . . Terminal Hacks . | . . . Fabricator Hacks . | . . . Repair Station Hacks . | . . . Recycling Unit Hacks . | . . . Scanalyzer . | . . . Garrison Access Hacks . | . . . Unauthorized Hacks . | . . . Terminals . | . . . Fabricators . | . . . Repair Stations . | . . . Recycling Units . | . . . Scanalyzers . | . . . Garrison Access . | . . . Data Cores Recovered . | . . . Used . | . . . Hacking Detections . | . . . Full Trace Events . | . . . Feedback Events . | . . . Feedback Blocked . | . . . Robot Schematics Acquired . | . . . Robots Built . | . . . Matter . | . . . Time . | . . . Total Robot Build Rating . | . . . Part Schematics Acquired . | . . . Parts Built . | . . . Matter . | . . . Time . | . . . Total Part Build Rating . | . . . Parts Repaired . | . . . Time . | . . . Parts Recycled . | . . . Recycled Matter . | . . . Retrieved Matter . | . . . Retrieved Components . | . . . Parts Scanalyzed . | . . . Part Schematics Acquired . | . . . Parts Damaged . | . . . Bothacking | -11 -10 -10 ------------ Run | Scr Mat Min Used RIF Installer . | . . . Robots Hacked . | . . . Non-combat . | . . . Combat . | . . . Robot Hacks Applied . | . . . Relay Couplers Released . | . . . Robots Rewired . | . . . Allies Hacked . | . . . Hacks Repelled . | . . . Allies | -11 -10 -10 -------- Run | Scr Mat Min Total Allies . | . . . Largest Group . | . . . Highest-Rated Group . | . . . Highest-Rated Ally . | . . . Total Orders . | . . . Ally Attacks . | . . . Total Damage . | . . . Kills . | . . . Allies Corrupted . | . . . Allies Melted . | . . . Intel | -11 -10 -10 ------- Run | Scr Mat Min Robot Analysis Total . | . . . Derelict Logs Recovered 1 | . . 1 Drone Launches . | . . . Drone Recoveries . | . . . Exploration | -11 -10 -10 ------------- Run | Scr Mat Min Turns Passed 530 | 45 121 364 Spaces Moved 447 | 40 108 299 Core 12 | 9 . 3 Treads . | . . . Legs . | . . . Wheels 435 | 31 108 296 Hover . | . . . Flight . | . . . Fastest Speed 50 | 50 90 90 Average Speed 100 | 82 95 104 Slowest Speed 600 | 100 100 600 Overloaded Moves . | . . . Propulsion Burnouts . | . . . Robots Hopped . | . . . Cave-ins Triggered . | . . . Exploration Rate (%) 30 | 3 25 64 Regions Visited 2 Branch Regions 1 Pre-discovered Areas 1 | . . 1 Known Exits Taken . | . . . Unknown Exits Taken 2 | 1 1 . Scrap Searched . | . . . Spaces Dug . | . . . Terrain Destroyed . | . . . Melee . | . . . Projectile . | . . . AOE . | . . . Terrain Rammed . | . . . Walls Destroyed . | . . . Machines Disabled . | . . . Actions | -11 -10 -10 --------- Run | Scr Mat Min Total 497 | 48 115 334 Wait 19 | . . 19 Move 445 | 39 107 299 Hop . | . . . Pick Up 5 | 2 . 3 Fast Attach 7 | 6 1 . Attach 3 | . . 3 Detach . | . . . Swap 3 | 1 1 1 Drop 1 | . 1 . Fire 10 | . 5 5 Melee 4 | . . 4 Ram . | . . . Kick . | . . . Crush . | . . . Escape Stasis . | . . . Rewire . | . . . Trap . | . . . Miscellaneous . | . . . Route ------- -11/Scrapyard -10/Materials -10/Mines (discovered 1 exit: [*Mat]) History --------- Turn | Location | Event 28 | -11/Scrapyard | Discovered new exit (range 13) 46 | -11/Scrapyard | Entered Materials 149 | -10/Materials | Discovered new exit (range 10) 167 | -10/Materials | Entered Mines 287 | -10/Mines | A weapon hastily lodged in a ceiling crevice suddenly fell to the ground 304 | -10/Mines | Discovered new exit (range 8) 315 | -10/Mines | Build established: Mutant 398 | -10/Mines | Assembled infested the area 506 | -10/Mines | Core integrity fell below 50% 525 | -10/Mines | Core integrity fell below 20% 531 | -10/Mines | Destroyed by as-62965 with Assembled F-torch Last Messages --------------- 00365_ Acquired derelict log, extracted data. World map updated: -10/Materials. 00395_ K-01 Serf collects debris. 00398_ ALERT: Infestation in the mines, dispatching Demolisher response squad. 00398_ K-01 Serf collects debris. 00400_ Acquired Seismic Analyzer. 00401_ K-01 Serf collects debris. 00423_ Acquired Wheel. 00424_ Extracted 34 matter. 00425_ Acquired 13 matter. 00442_ Ion Engine destroyed. 00445_ Destroyed Asb. F-torch. 00462_ K-01 Serf collects debris. 00473_ K-01 Serf destroyed. 00480_ Com. Wheel destroyed. 00494_ Lgt. Ion Engine destroyed. 00495_ Assault Rifle destroyed. 00501_ Heat Sink destroyed. 00509_ Wheel destroyed. 00528_ Ripper destroyed. Map ----- +----------------------------------------------------+ | ????????????????????????????????? | | ????????????????????????????????? | | ????????????????????????????????? | | ?????#####??????????????????????? | | ###### ##?????????????????????? | | #?????????????????????? | | "" #?????????????????????? | | "" #???????????####??????? | | "" #?????????## #??????? | | ##?????????# #??????? | | ## ###?????????## #???????? | | ?## ###????????#### #????????? | | ### #?????????## #?????????? | | #????????## ##????????? | | #???????## ##???????? | | "" ##???????# ##??????? | | "" #????????# ##?????? | | "" #???????## #?????? | | ##?????### ### #?????? | | ##??????# !######?## ##????? | | ##???????# ##???????## #????? | | #????????# ##????????## #????? | | #????????###?????????##aa##????? | | ###########?????????## a #?????? | | ## #?????????# ##????? | | ## ###### #?????????#% @ ##???? | | ## #????# ##????????# ##??? | | *##!#????# ##???????# ##?? | | *! =###### ##??????# ##? | | %#### ##?????# #? | | =#??# #### #?????## #? | | #??????## #??????## #? | | #?????## ##??????## ##? | | #?????# #??????## #?? | | #?????# ##?##### ##?? | | #?????# ### ##??? | | #?????## [ *% ## #???? | | ??????## !##?# #???? | | #???????## ##??? #??? | | #????????### ##???? #??? | | #??????????## #????? ##??? | | #???????????# #????? #???? | | #???????????# ! #????? #???? | | ??????????? #?????#???? | | ??????????## #?????????? | | ???????????## #?????????? | | ????????????# #?????????? | | ????????????## #????????? | | ?????????????## #????????? | | ??????????????# ????????? | +----------------------------------------------------+ Best States ------------- Heat Dissipation 35 Energy Generation 10 Energy Capacity 250 Matter Stores 280 Matter Capacity 300 Sight Range 16 Terrain Scan Density 10 Evasion (%) 42 Item Schematics ----------------- None Robot Schematics ------------------ None Fabricated ------------ Nothing Alien Tech Used ----------------- None Achievements -------------- None Challenges ------------ None Game ------ Seed MiniImprinterPropulsion Manual? 0 Play Time 00:19:35 Cumulative 163.6 hours Start 2021.08.30 @ 22:45:09 End 2021.08.31 @ 21:11:15 Sessions 2 Manual Loads 0 Difficulty Rogue Special Mode None Game No. 208 Rogue 208 Adventurer 0 Explorer 0 Win Type - Total 1 Types 1/0/0/0/0/0/0/0/0 Lore% 38 Gallery% 62 Achievement% 41 Wizard Run 0 Options --------- ASCII 0 Keyboard 1 Movement Vi Keybinds 0 Fullscreen 1 Font 14/Terminus Map View 84x54 Tactical HUD 1 Map Filters NONE Filters NONE Steam 1 RUN: f4346efd-f4c3-45f2-893d-dbaf4089504b